bitfinex-derivatives/quotes_BNBF0:USTF0_20250309
["timestamp","ask_amount","ask_price","bid_price","bid_amount"]
[1741494582579,0.31270265,588.16,587.03,4.89669809]
[1741494584787,0.2961866,588.17,587.03,4.89669809]
[1741494585383,1.56570737,588.17,587.03,4.89669809]
[1741494587088,0.2961866,588.17,587.03,4.89669809]
[1741494587887,1.26952077,588.32,587.03,4.89669809]
[1741494588088,0.31270782,588.31,587.03,4.89669809]
[1741494588282,0.60888307,588.31,587.03,4.89669809]
[1741494588486,0.31270782,588.3,587.03,4.89669809]
[1741494589089,0.3127075,588.29,587.03,4.89669809]
[1741494589287,0.3127075,588.3,587.03,4.89669809]
[1741494589488,0.3127075,588.29,587.03,4.89669809]
[1741494589688,0.3127075,588.3,587.03,4.89669809]
[1741494589885,0.3127075,588.29,587.03,4.89669809]
[1741494590089,0.3127075,588.3,587.03,4.89669809]
[1741494590286,0.3127075,588.29,587.03,4.89669809]
[1741494590490,0.3127075,588.3,587.03,4.89669809]
[1741494590685,0.3127075,588.29,587.03,4.89669809]
[1741494590884,0.3127075,588.3,587.03,4.89669809]
[1741494591088,0.31270593,588.29,587.03,4.89669809]
[1741494591292,0.31270593,588.28,587.03,4.89669809]
[1741494591492,0.31270593,588.27,587.03,4.89669809]
[1741494591688,0.31270593,588.26,587.03,4.89669809]
[1741494591885,0.31270593,588.25,587.03,4.89669809]
[1741494592086,0.31270593,588.31,587.03,4.89669809]
[1741494592290,0.29617525,588.25,587.03,4.89669809]
[1741494592492,0.31270593,588.24,587.03,4.89669809]
[1741494592691,0.29617525,588.25,587.03,4.89669809]
[1741494592892,0.3127051,588.24,587.03,4.89669809]
[1741494594296,0.60888918,588.23,587.03,4.89669809]
[1741494594594,0.3127051,588.22,587.03,4.89669809]
[1741494596496,0.29618408,588.23,587.03,4.89669809]
[1741494596699,0.3127076,588.22,587.03,4.89669809]
[1741494597099,1.26952077,588.31,587.03,4.89669809]
[1741494597100,0.3127076,588.3,587.03,4.89669809]
[1741494597301,0.2961866,588.21,587.03,4.89669809]
[1741494597504,0.3127076,588.2,587.03,4.89669809]
[1741494597703,1.26952077,588.13,587.03,4.89669809]
[1741494597903,0.3127076,588.12,587.03,4.89669809]
[1741494598403,0.2961992,588.11,587.03,4.89669809]
[1741494598604,0.3127076,588.1,587.03,4.89669809]
[1741494600104,1.58222837,588.1,587.03,4.89669809]
[1741494600304,0.3127076,588.09,587.03,4.89669809]
[1741494601504,0.31270538,588.08,587.03,4.89669809]
[1741494601698,0.31270538,588.09,587.03,4.89669809]
[1741494601902,0.31270538,588.08,587.03,4.89669809]
[1741494602103,0.31270538,588.09,587.03,4.89669809]
[1741494602300,0.31270538,588.08,587.03,4.89669809]
[1741494602601,0.31270538,588.07,587.03,4.89669809]
[1741494602806,0.31270538,588.06,587.03,4.89669809]
[1741494603001,0.31270538,588.09,587.03,4.89669809]
[1741494603206,0.3127219,588.08,587.03,4.89669809]
[1741494603410,0.3127219,588.07,587.03,4.89669809]
[1741494603610,0.3127219,588.06,587.03,4.89669809]
[1741494603905,1.26952077,588.1,587.03,4.89669809]
[1741494604107,0.29621307,588.05,587.03,4.89669809]
[1741494604904,0.31275218,588.04,587.03,4.89669809]
[1741494606106,0.31275218,588.26,587.03,4.89669809]
[1741494606305,0.31275218,588.25,587.03,4.89669809]
[1741494606502,0.31275218,588.28,587.03,4.89669809]
[1741494606707,0.31275218,588.27,587.03,4.89669809]
[1741494606907,0.31275218,588.28,587.03,4.89669809]
[1741494607207,0.60894382,588.27,587.03,4.89669809]
[1741494607407,0.31275218,588.26,587.03,4.89669809]
[1741494608107,1.26952077,588.09,587.03,4.89669809]
[1741494608602,0.31276356,588.08,587.03,4.89669809]
[1741494610206,1.26952077,588.09,587.03,4.89669809]
[1741494610406,0.31275628,588.08,587.03,4.89669809]
[1741494610808,0.31275628,588.09,587.03,4.89669809]
[1741494613202,0.2962282,588.08,587.03,4.89669809]
[1741494613408,0.31275628,588.07,587.03,4.89669809]
[1741494615109,0.31275628,588.06,587.03,4.89669809]
[1741494615309,0.31275628,588.05,587.03,4.89669809]
[1741494615509,0.31275628,588.13,587.03,4.89669809]
[1741494615710,0.31275628,588.12,587.03,4.89669809]
[1741494615903,0.29622315,588.04,587.03,4.89669809]
[1741494616108,0.31275628,588.03,587.03,4.89669809]
[1741494616309,0.31275628,588.14,587.03,4.89669809]
[1741494616510,0.31275628,588.13,587.03,4.89669809]
[1741494616711,0.31275628,588.14,587.03,4.89669809]
[1741494616911,0.31275628,588.13,587.03,4.89669809]
[1741494617211,0.60897817,588.12,587.03,4.89669809]
[1741494617412,0.31275628,588.11,587.03,4.89669809]
[1741494618213,0.29622568,588.1,587.03,4.89669809]
[1741494618514,0.31275628,588.09,587.03,4.89669809]
[1741494621013,0.31276329,588.08,587.03,4.89669809]
[1741494621315,0.31276329,588.07,587.03,4.89669809]
[1741494621610,0.31276329,588.06,587.03,4.89669809]
[1741494621816,1.26952077,588.11,587.03,4.89669809]
[1741494621817,0.31276329,588.1,587.03,4.89669809]
[1741494622016,0.31276329,588.09,587.03,4.89669809]
[1741494622315,0.29622694,588.05,587.03,4.89669809]
[1741494622514,0.31276329,588.04,587.03,4.89669809]
[1741494624715,0.31280635,588.03,587.03,4.89669809]
[1741494624914,0.31280635,588.04,587.03,4.89669809]
[1741494625115,0.31280635,588.03,587.03,4.89669809]
[1741494625317,0.31280635,588.02,587.03,4.89669809]
[1741494625516,0.31280635,588.01,587.03,4.89669809]
[1741494625716,0.31280635,588.04,587.03,4.89669809]
[1741494626016,0.31280635,588.03,587.03,4.89669809]
[1741494626210,0.31280635,588.04,587.03,4.89669809]
[1741494626412,0.31280885,588.03,587.03,4.89669809]
[1741494626615,0.31280885,588.02,587.03,4.89669809]
[1741494626914,0.31280885,588.04,587.03,4.89669809]
[1741494627215,0.31280885,588.03,587.03,4.89669809]
[1741494627415,0.31280885,588.12,587.03,4.89669809]
[1741494627710,0.31280885,588.11,587.03,4.89669809]
[1741494627915,0.31280885,588.12,587.03,4.89669809]
[1741494628115,0.29623702,588.1,587.03,4.89669809]
[1741494628317,0.31280885,588.09,587.03,4.89669809]
[1741494630120,0.31280879,588.08,587.03,4.89669809]
[1741494630421,0.31280879,588.07,587.03,4.89669809]
[1741494630624,0.31280879,588.06,587.03,4.89669809]
[1741494630823,0.31280879,588.15,587.03,4.89669809]
[1741494631021,0.31280879,588.14,587.03,4.89669809]
[1741494631218,0.29623324,588.05,587.03,4.89669809]
[1741494631524,0.31280879,588.04,587.03,4.89669809]
[1741494631719,1.26952077,588.14,587.03,4.89669809]
[1741494631922,0.31280785,588.13,587.03,4.89669809]
[1741494632323,0.29623576,588.12,587.03,4.89669809]
[1741494632523,0.31280785,588.11,587.03,4.89669809]
[1741494633124,0.31280785,588.13,587.03,4.89669809]
[1741494633524,1.58232862,588.13,587.03,4.89669809]
[1741494633721,0.31280894,588.12,587.03,4.89669809]
[1741494634124,0.29623702,588.11,587.03,4.89669809]
[1741494634325,0.31280894,588.1,587.03,4.89669809]
[1741494635525,0.31280816,588.09,587.03,4.89669809]
[1741494635725,0.31280816,588.1,587.03,4.89669809]
[1741494636027,0.31280816,588.09,587.03,4.89669809]
[1741494636228,0.31280816,588.1,587.03,4.89669809]
[1741494636423,0.31280816,588.09,587.03,4.89669809]
[1741494636625,0.31280816,588.1,587.03,4.89669809]
[1741494636821,0.31280816,588.09,587.03,4.89669809]
[1741494637022,0.31280816,588.1,587.03,4.89669809]
[1741494637230,0.31280816,588.09,587.03,4.89669809]
[1741494637525,0.31280816,588.08,587.03,4.89669809]
[1741494637726,0.31280816,588.1,587.03,4.89669809]
[1741494639125,0.31280816,588.09,587.03,4.89669809]
[1741494639324,0.31280816,588.08,587.03,4.89669809]
[1741494639625,0.31280816,588.07,587.03,4.89669809]
[1741494639822,1.26952077,588.21,587.03,4.89669809]
[1741494639823,0.31280816,588.06,587.03,4.89669809]
[1741494640019,0.31280816,588.05,587.03,4.89669809]
[1741494640326,0.31280816,588.04,587.03,4.89669809]
[1741494640528,0.31280816,588.05,587.03,4.89669809]
[1741494640726,0.31280816,588.04,587.03,4.89669809]
[1741494641028,0.31281669,588.03,587.03,4.89669809]
[1741494641327,0.31281669,588.02,587.03,4.89669809]
[1741494641524,0.31281669,588.05,587.03,4.89669809]
[1741494641722,0.31281669,588.04,587.03,4.89669809]
[1741494641926,0.31281669,588.03,587.03,4.89669809]
[1741494642130,0.31281669,588.05,587.03,4.89669809]
[1741494642527,0.29624207,588.06,587.03,4.89669809]
[1741494642725,0.31281579,588.05,587.03,4.89669809]
[1741494644537,0.31281573,588.04,587.03,4.89669809]
[1741494644729,0.31281573,588.05,587.03,4.89669809]
[1741494644931,0.31281573,588.04,587.03,4.89669809]
[1741494645134,0.31281573,588.03,587.03,4.89669809]
[1741494645436,0.31281573,588.02,587.03,4.89669809]
[1741494645637,1.26952077,588.06,587.03,4.89669809]
[1741494645830,0.31281573,588.05,587.03,4.89669809]
[1741494646233,0.3128149,588.04,587.03,4.89669809]
[1741494647833,0.29626098,588.05,587.03,4.89669809]
[1741494648033,0.31281708,588.04,587.03,4.89669809]
[1741494648237,0.2962572,588.04,587.03,4.89669809]
[1741494648437,0.31281708,588.03,587.03,4.89669809]
[1741494649939,0.31281878,588.02,587.03,4.89669809]
[1741494650132,0.31281878,588.01,587.03,4.89669809]
[1741494650334,0.31281878,588.03,587.03,4.89669809]
[1741494650533,0.31281878,588.02,587.03,4.89669809]
[1741494650737,0.31281878,588.03,587.03,4.89669809]
[1741494651038,0.31281878,588.02,587.03,4.89669809]
[1741494651238,0.31281878,588.15,587.03,4.89669809]
[1741494651438,0.31281878,588.14,587.03,4.89669809]
[1741494651637,0.31282344,588.13,587.03,4.89669809]
[1741494651838,0.31282344,588.12,587.03,4.89669809]
[1741494652039,0.29624837,588.12,587.03,4.89669809]
[1741494652233,0.31282344,588.11,587.03,4.89669809]
[1741494653341,0.31282819,588.1,587.03,4.89669809]
[1741494653541,0.31282819,588.11,587.03,4.89669809]
[1741494653735,0.31282819,588.1,587.03,4.89669809]
[1741494653942,0.31282819,588.11,587.03,4.89669809]
[1741494654142,0.31282567,588.1,587.03,4.89669809]
[1741494654442,0.31282567,588.09,587.03,4.89669809]
[1741494654640,0.31282567,588.12,587.03,4.89669809]
[1741494654944,3.36964464,588.37,587.03,4.89669809]
[1741494654945,1.58234644,588.11,587.03,4.89669809]
[1741494655139,0.31282567,588.1,587.03,4.89669809]
[1741494655346,0.31282715,588.09,587.03,4.89669809]
[1741494655544,0.31282715,588.1,587.03,4.89669809]
[1741494655744,0.31282715,588.08,587.03,4.89669809]
[1741494657245,0.31282715,588.1,587.03,4.89669809]
[1741494657640,1.26952077,588.09,587.03,4.89669809]
[1741494657845,0.31282715,588.08,587.03,4.89669809]
[1741494658442,0.31285376,588.07,587.03,4.89669809]
[1741494658642,0.31285376,588.08,587.03,4.89669809]
[1741494658846,1.26952077,588.09,587.03,4.89669809]
[1741494658847,0.31285376,588.07,587.03,4.89669809]
[1741494659047,0.31285376,588.06,587.03,4.89669809]
[1741494659240,0.31285376,588.05,587.03,4.89669809]
[1741494659445,0.31285376,588.08,587.03,4.89669809]
[1741494659648,0.31285376,588.07,587.03,4.89669809]
[1741494659848,0.31285376,588.06,587.03,4.89669809]
[1741494660047,0.31285376,588.08,587.03,4.89669809]
[1741494660244,0.29627485,588.05,587.03,4.89669809]
[1741494660451,1.26952077,587.87,587.03,4.89669809]
[1741494660643,0.31285376,587.86,587.03,4.89669809]
[1741494661547,1.26952077,587.87,587.03,4.89669809]
[1741494661749,0.31285034,587.86,587.03,4.89669809]
[1741494663251,0.2963026,587.85,587.03,4.89669809]
[1741494663445,0.31285034,587.84,587.03,4.89669809]
[1741494666155,1.26952077,587.88,587.03,4.89669809]
[1741494666451,0.31282989,587.87,587.03,4.89669809]
[1741494667056,0.31282989,587.94,587.03,4.89669809]
[1741494667257,0.29627485,587.86,587.03,4.89669809]
[1741494667451,1.26952077,587.95,587.03,4.89669809]
[1741494667649,0.29627485,587.85,587.03,4.89669809]
[1741494668156,1.26952077,587.95,587.03,4.89669809]
[1741494668351,0.31282274,587.94,587.03,4.89669809]
[1741494668755,0.31282242,587.93,587.03,4.89669809]
[1741494668956,0.31282242,587.92,587.03,4.89669809]
[1741494669157,0.29627359,587.92,587.03,4.89669809]
[1741494669353,0.31282242,587.91,587.03,4.89669809]
[1741494670559,0.29627359,587.92,587.03,4.89669809]
[1741494671963,1.26952077,588.02,587.03,4.89669809]
[1741494672162,0.31279925,588.01,587.03,4.89669809]
[1741494672362,0.29625089,587.91,587.03,4.89669809]
[1741494672562,1.26952077,588.02,587.03,4.89669809]
[1741494672763,0.31279152,588.01,587.03,4.89669809]
[1741494673263,0.29625089,588.0,587.03,4.89669809]
[1741494673465,0.31279152,587.99,587.03,4.89669809]
[1741494675161,0.31279152,588.03,587.03,4.89669809]
[1741494675462,0.29625342,587.98,587.03,4.89669809]
[1741494675664,0.31279152,587.97,587.03,4.89669809]
[1741494677765,0.29625342,587.98,587.03,4.89669809]
[1741494677962,0.31278864,587.97,587.03,4.89669809]
[1741494678265,0.31278864,587.96,587.03,4.89669809]
[1741494679267,0.31278927,587.95,587.03,4.89669809]
[1741494679468,0.31278927,587.94,587.03,4.89669809]
[1741494679667,0.29624585,587.97,587.03,4.89669809]
[1741494679859,0.31278895,587.96,587.03,4.89669809]
[1741494681368,0.60904615,587.95,587.03,4.89669809]
[1741494681561,0.31278895,587.94,587.03,4.89669809]
[1741494684163,0.31278895,587.93,587.03,4.89669809]
[1741494684368,0.31278895,587.92,587.03,4.89669809]
[1741494684573,0.31278895,587.91,587.03,4.89669809]
[1741494684774,1.26952077,587.99,587.03,4.89669809]
[1741494685272,0.60905393,587.98,587.03,4.89669809]
[1741494685472,0.31279925,587.97,587.03,4.89669809]
[1741494685872,0.29625468,587.98,587.03,4.89669809]
[1741494686065,0.31279925,587.97,587.03,4.89669809]
[1741494687371,0.31279925,588.0,587.03,4.89669809]
[1741494687571,0.31279925,587.99,587.03,4.89669809]
[1741494687768,0.31279925,588.0,587.03,4.89669809]
[1741494688300,0.29625215,587.99,587.03,4.89669809]
[1741494688604,0.31279925,587.98,587.03,4.89669809]
[1741494690305,0.31279925,587.97,587.03,4.89669809]
[1741494690512,0.29625468,587.97,587.03,4.89669809]
[1741494690904,0.31278147,587.96,587.03,4.89669809]
[1741494692611,0.29625468,587.97,587.03,4.89669809]
[1741494692812,0.31278042,587.96,587.03,4.89669809]
[1741494693408,0.29624711,587.95,587.03,4.89669809]
[1741494693610,0.60902753,587.95,587.03,4.89669809]
[1741494693811,0.31278042,587.94,587.03,4.89669809]
[1741494694607,0.29624711,587.95,587.03,4.89669809]
[1741494696014,1.26952077,588.17,587.03,4.89669809]
[1741494696216,0.31276857,588.16,587.03,4.89669809]
[1741494697310,0.29621181,588.15,587.03,4.89669809]
[1741494697505,0.31276857,588.14,587.03,4.89669809]
[1741494699205,0.31276857,588.16,587.03,4.89669809]
[1741494700202,0.60897029,588.15,587.03,4.89669809]
[1741494700409,0.31276857,588.14,587.03,4.89669809]
[1741494702206,0.31276857,588.21,587.03,4.89669809]
[1741494702506,0.31276857,588.2,587.03,4.89669809]
[1741494702704,0.31276857,588.22,587.03,4.89669809]
[1741494703003,0.31276857,588.21,587.03,4.89669809]
[1741494703204,0.29619416,588.21,587.03,4.89669809]
[1741494703709,0.31272756,588.2,587.03,4.89669809]
[1741494705403,1.26952077,588.16,587.03,4.89669809]
[1741494705609,0.31272756,588.15,587.03,4.89669809]
[1741494707593,0.31272756,588.2,587.03,4.89669809]
[1741494707792,0.31272756,588.19,587.03,4.89669809]
[1741494707992,0.31272756,588.2,587.03,4.89669809]
[1741494708194,0.31272756,588.19,587.03,4.89669809]
[1741494708396,0.31272756,588.2,587.03,4.89669809]
[1741494708995,0.29619416,588.21,587.03,4.89669809]
[1741494709190,0.31268159,588.2,587.03,4.89669809]
[1741494711298,0.31268159,588.19,587.03,4.89669809]
[1741494711596,0.31268159,588.18,587.03,4.89669809]
[1741494711798,0.31268159,588.17,587.03,4.89669809]
[1741494711991,0.31268159,588.16,587.03,4.89669809]
[1741494712197,1.26952077,588.37,587.03,4.89669809]
[1741494712397,0.29615131,588.16,587.03,4.89669809]
[1741494712595,0.3126763,588.36,587.03,4.89669809]
[1741494712596,1.26952077,588.37,587.03,4.89669809]
[1741494712795,0.31264339,588.36,587.03,4.89669809]
[1741494713395,0.31264339,588.38,587.03,4.89669809]
[1741494713693,0.31264339,588.37,587.03,4.89669809]
[1741494713899,0.31264339,588.36,587.03,4.89669809]
[1741494714099,0.31264339,588.35,587.03,4.89669809]
[1741494714300,0.31264339,588.34,587.03,4.89669809]
[1741494714601,0.3126187,588.33,587.03,4.89669809]
[1741494714802,0.29611855,588.37,587.03,4.89669809]
[1741494714803,0.3126187,588.36,587.03,4.89669809]
[1741494715002,0.3126187,588.35,587.03,4.89669809]
[1741494715205,0.3126187,588.36,587.03,4.89669809]
[1741494715406,0.3126187,588.35,587.03,4.89669809]
[1741494715607,0.3126187,588.34,587.03,4.89669809]
[1741494715806,0.3126187,588.33,587.03,4.89669809]
[1741494716104,0.3126187,588.32,587.03,4.89669809]
[1741494716306,0.3126187,588.36,587.03,4.89669809]
[1741494716606,0.3126187,588.35,587.03,4.89669809]
[1741494716814,0.3126187,588.36,587.03,4.89669809]
[1741494717004,0.3126187,588.35,587.03,4.89669809]
[1741494717200,0.3126187,588.46,587.03,4.89669809]
[1741494717404,0.31259704,588.45,587.03,4.89669809]
[1741494717704,0.31259704,588.44,587.03,4.89669809]
[1741494717900,0.31259704,588.46,587.03,4.89669809]
[1741494718098,0.33986439,588.47,587.03,4.89669809]
[1741494718099,0.31259704,588.45,587.03,4.89669809]
[1741494718303,0.29610847,588.43,587.03,4.89669809]
[1741494718503,0.31259704,588.42,587.03,4.89669809]
[1741494720406,0.31259704,588.46,587.03,4.89669809]
[1741494720599,0.31259704,588.45,587.03,4.89669809]
[1741494720806,0.31259704,588.46,587.03,4.89669809]
[1741494721006,0.31259704,588.45,587.03,4.89669809]
[1741494721202,0.29610847,588.44,587.03,4.89669809]
[1741494721607,0.31259704,588.43,587.03,4.89669809]
[1741494723207,0.31259704,588.46,587.03,4.89669809]
[1741494723408,0.31259704,588.45,587.03,4.89669809]
[1741494723600,0.31259704,588.44,587.03,4.89669809]
[1741494723801,0.31259704,588.43,587.03,4.89669809]
[1741494724005,0.31259704,588.42,587.03,4.89669809]
[1741494724203,0.31259704,588.41,587.03,4.89669809]
[1741494724405,0.31259704,588.4,587.03,4.89669809]
[1741494724604,0.31259704,588.39,587.03,4.89669809]
[1741494724808,0.31259704,588.38,587.03,4.89669809]
[1741494725008,0.31259704,588.37,587.03,4.89669809]
[1741494725209,0.31259704,588.42,587.03,4.89669809]
[1741494726208,0.31259704,588.46,587.03,4.89669809]
[1741494726408,0.31259704,588.45,587.03,4.89669809]
[1741494726610,0.31259704,588.44,587.03,4.89669809]
[1741494726805,0.31259704,588.43,587.03,4.89669809]
[1741494727010,0.31259704,588.46,587.03,4.89669809]
[1741494727211,0.29610847,588.43,587.03,4.89669809]
[1741494727405,0.31259704,588.42,587.03,4.89669809]
[1741494729309,0.29611351,588.41,587.03,4.89669809]
[1741494729511,0.31259704,588.4,587.03,4.89669809]
[1741494732314,0.29609839,588.39,587.03,4.89669809]
[1741494732713,0.31259704,588.38,587.03,4.89669809]
[1741494735415,0.33986439,588.47,587.03,4.89669809]
[1741494735416,0.60869795,588.37,587.03,4.89669809]
[1741494735615,0.31259704,588.36,587.03,4.89669809]
[1741494736217,0.29610091,588.37,587.03,4.89669809]
[1741494738118,0.33986439,588.47,587.03,4.89669809]
[1741494739319,0.29603542,588.46,587.03,4.89669809]
[1741494741120,0.33986439,588.47,587.03,4.89669809]
[1741494742321,0.29598506,588.46,587.03,4.89669809]
[1741494744023,0.33986439,588.47,587.03,4.89669809]
[1741494745117,0.29600395,588.46,587.03,4.89669809]
[1741494745422,0.31259545,588.45,587.03,4.89669809]
[1741494746020,0.29600395,588.46,587.03,4.89669809]
[1741494746216,0.31259391,588.45,587.03,4.89669809]
[1741494747222,0.31259581,588.44,587.03,4.89669809]
[1741494747418,0.31259581,588.46,587.03,4.89669809]
[1741494747624,0.29608832,588.43,587.03,4.89669809]
[1741494747922,0.31259581,588.42,587.03,4.89669809]
[1741494749153,0.31259344,588.41,587.03,4.89669809]
[1741494749354,0.31259344,588.42,587.03,4.89669809]
[1741494749544,0.31259344,588.41,587.05,1.27617162]
[1741494749841,0.31259344,588.4,587.07,0.34067487]
[1741494750035,0.31259344,588.42,587.07,0.34067487]
[1741494750240,0.31259344,588.41,587.07,0.34067487]
[1741494750433,0.29609084,588.39,587.07,0.34067487]
[1741494750637,0.31259344,588.38,587.07,0.34067487]
[1741494750857,0.31259137,588.37,587.07,0.34067487]
[1741494751059,0.31259137,588.38,587.07,0.34067487]
[1741494751245,0.31259137,588.37,587.07,0.34067487]
[1741494751447,0.31259137,588.38,587.08,1.27617162]
[1741494751649,0.31259137,588.37,587.1,0.34065746]
[1741494751843,0.29609084,588.39,587.1,0.34065746]
[1741494751844,0.31259137,588.36,587.1,0.34065746]
[1741494752042,0.31259137,588.38,587.1,0.34065746]
[1741494752844,0.29609084,588.39,587.1,0.34065746]
[1741494752845,0.31258148,588.37,587.1,0.34065746]
[1741494753043,1.26952077,588.43,587.1,0.34065746]
[1741494753044,0.31258148,588.38,587.11,5.346]
[1741494753243,0.31258212,588.42,587.13,0.34064006]
[1741494753449,1.26952077,588.4,587.13,0.34064006]
[1741494754342,0.29607194,588.39,587.13,0.34064006]
[1741494756141,1.26952077,588.4,587.13,0.34064006]
[1741494756660,0.33986439,588.47,587.13,0.34064006]
[1741494757034,0.31255713,588.46,587.13,0.34064006]
[1741494757333,0.60860011,588.46,587.13,0.34064006]
[1741494757631,0.31255713,588.45,587.13,0.34064006]
[1741494759328,0.31255713,588.46,587.13,0.34064006]
[1741494759527,0.31255713,588.45,587.13,0.34064006]
[1741494759734,0.31255713,588.44,587.13,0.34064006]
[1741494759936,0.31255713,588.58,587.13,0.34064006]
[1741494760335,0.2960329,588.43,587.13,0.34064006]
[1741494760528,1.26952077,588.61,587.13,0.34064006]
[1741494760733,0.31255719,588.6,587.13,0.34064006]
[1741494761535,0.29602913,588.59,587.13,0.34064006]
[1741494761728,0.31255719,588.58,587.13,0.34064006]
[1741494762429,0.31255719,588.57,587.13,0.34064006]
[1741494762633,0.31255719,588.6,587.13,0.34064006]
[1741494762834,0.31255719,588.59,587.13,0.34064006]
[1741494763034,0.31255719,588.6,587.13,0.34064006]
[1741494763234,0.60858758,588.59,587.13,0.34064006]
[1741494763430,0.31255719,588.58,587.13,0.34064006]
[1741494763634,0.31255741,588.57,587.13,0.34064006]
[1741494763826,0.31255741,588.58,587.13,0.34064006]
[1741494764028,0.31255741,588.57,587.13,0.34064006]
[1741494764229,0.31255741,588.58,587.13,0.34064006]
[1741494764429,0.31255741,588.57,587.13,0.34064006]
[1741494764634,1.26952077,588.49,587.16,1.27617162]
[1741494764933,0.31255741,588.48,587.18,0.34061105]
[1741494766236,0.2960392,588.47,587.18,0.34061105]
[1741494766431,0.31255741,588.46,587.18,0.34061105]
[1741494766633,0.2960392,588.47,587.18,0.34061105]
[1741494767234,0.2960392,588.47,587.18,1.16161105]
[1741494768037,1.26952077,588.51,587.18,1.16161105]
[1741494769239,0.60856669,588.5,587.18,1.80361105]
[1741494769438,0.31253253,588.49,587.18,1.80361105]
[1741494769938,0.31253462,588.48,587.18,1.80361105]
[1741494770138,0.31253462,588.49,587.18,1.80361105]
[1741494771239,0.31253462,588.76,587.18,1.80361105]
[1741494771439,0.31253462,588.75,587.18,1.80361105]
[1741494771644,0.31253462,588.74,587.18,1.80361105]
[1741494771841,0.31253462,588.73,587.18,1.80361105]
[1741494772037,0.31253462,588.72,587.18,1.80361105]
[1741494772239,0.31253462,588.71,587.18,2.76961105]
[1741494772438,0.31253462,588.7,587.18,2.76961105]
[1741494772637,0.31253462,588.69,587.18,2.76961105]
[1741494772841,0.31253462,588.68,587.18,2.76961105]
[1741494773042,0.31253462,588.72,587.18,2.76961105]
[1741494773241,0.31253462,588.71,587.18,2.76961105]
[1741494773436,0.31253462,588.7,587.18,2.76961105]
[1741494773637,0.31253462,588.69,587.18,2.76961105]
[1741494773944,1.26952077,588.52,587.18,2.76961105]
[1741494774142,0.31253462,588.51,587.18,2.76961105]
[1741494775243,0.29607068,588.5,587.18,2.76961105]
[1741494775543,0.31253462,588.49,587.18,2.76961105]
[1741494776643,0.31259199,588.48,587.18,2.76961105]
[1741494776845,0.31259199,588.49,587.18,2.76961105]
[1741494777345,1.26952077,588.72,587.18,2.76961105]
[1741494777346,0.31259199,588.71,587.18,2.76961105]
[1741494777548,0.31258656,588.7,587.18,2.76961105]
[1741494777745,0.33973161,588.7,587.18,2.76961105]
[1741494778046,0.31258656,588.69,587.18,2.76961105]
[1741494778346,0.33974315,588.68,587.18,3.61061105]
[1741494778543,0.31258656,588.67,587.18,3.61061105]
[1741494778846,0.33975469,588.66,587.18,3.61061105]
[1741494779146,0.31258656,588.65,587.18,3.61061105]
[1741494780347,0.31258656,588.65,587.18,4.87461105]
[1741494781249,0.29603164,588.64,587.18,4.87461105]
[1741494781447,0.31258656,588.63,587.18,4.87461105]
[1741494783246,0.31258656,588.62,587.18,4.87461105]
[1741494783447,0.33975469,588.66,587.18,4.87461105]
[1741494783646,0.31256365,588.65,587.18,4.87461105]
[1741494783845,0.60857263,588.65,587.18,4.87461105]
[1741494784148,0.31256365,588.64,587.18,4.87461105]
[1741494784351,0.31256365,588.64,587.18,4.97961105]
[1741494786143,0.31256365,588.64,587.18,6.03861105]
[1741494786450,0.29602409,588.63,587.18,6.03861105]
[1741494786850,0.31256365,588.62,587.18,6.03861105]
[1741494787245,0.31256555,588.61,587.18,6.03861105]
[1741494787448,0.31256555,588.6,587.18,6.03861105]
[1741494787651,0.31256555,588.62,587.18,6.03861105]
[1741494787949,0.31256555,588.61,587.18,6.03861105]
[1741494788153,0.31256555,588.62,587.18,6.03861105]
[1741494788350,0.31256555,588.61,587.18,6.03861105]
[1741494788550,0.31256555,588.62,587.18,6.03861105]
[1741494789347,0.29602661,588.61,587.18,6.03861105]
[1741494789646,0.31256555,588.6,587.18,6.03861105]
[1741494792258,0.31256555,588.65,587.18,6.03861105]
[1741494792453,0.29602913,588.59,587.18,6.03861105]
[1741494792651,0.31256555,588.58,587.18,6.03861105]
[1741494794158,1.26952077,588.52,587.18,6.03861105]
[1741494794359,0.31256555,588.51,587.18,6.03861105]
[1741494796361,0.29603794,588.5,587.18,6.03861105]
[1741494798163,0.33975469,588.66,587.18,6.03861105]
[1741494798358,0.31251981,588.65,587.18,6.03861105]
[1741494799465,0.29600772,588.64,587.18,6.03861105]
[1741494799661,0.31251981,588.63,587.18,6.03861105]
[1741494800367,0.29600772,588.64,587.18,6.03861105]
[1741494801066,0.33975469,588.66,587.18,6.03861105]
[1741494801469,0.29600772,588.63,587.18,6.03861105]
[1741494804268,0.33975469,588.66,587.18,6.03861105]
[1741494804470,0.29600772,588.62,587.18,6.03861105]
[1741494805974,0.31255603,588.61,587.18,6.03861105]
[1741494807271,0.31255603,588.65,587.18,6.03861105]
[1741494807472,0.60859145,588.6,587.18,6.03861105]
[1741494807673,0.29603542,588.6,587.18,6.03861105]
[1741494809974,0.31255678,588.59,587.18,6.03861105]
[1741494810373,0.31255678,588.65,587.18,6.03861105]
[1741494810573,0.29603794,588.58,587.18,6.03861105]
[1741494810778,0.31255678,588.57,587.18,6.03861105]
[1741494810975,0.31255678,588.65,587.18,6.03861105]
[1741494811176,0.31255678,588.64,587.18,6.03861105]
[1741494811371,0.29603039,588.64,587.18,6.03861105]